fUST/lending_fUST_20250408
["ID","MTS","AMOUNT","RATE_DAILY","PERIOD"]
[357453463,1744072267433,-500.0,0.00025479,2]
[357453464,1744072267443,-500.0,0.00025479,2]
[357453465,1744072267452,-630.12,0.00025479,2]
[357453466,1744072267462,-500.0,0.00025479,2]
[357453467,1744072267472,-1246.42,0.00025479,2]
[357453468,1744072267482,-764.69,0.00025479,2]
[357453469,1744072267492,-1246.58,0.00025479,2]
[357453470,1744072267501,-500.0,0.00025479,2]
[357453471,1744072267511,-818.18,0.00025479,2]
[357453472,1744072267521,-500.0,0.00025479,2]
[357453473,1744072267531,-500.0,0.00025479,2]
[357453474,1744072267541,-500.0,0.00025479,2]
[357453475,1744072267552,-500.0,0.00025479,2]
[357453476,1744072267566,-500.0,0.00025479,2]
[357453477,1744072267584,-500.0,0.00025479,2]
[357453478,1744072267596,-500.0,0.00025479,2]
[357453479,1744072267606,-592.63,0.00025479,2]
[357453480,1744072267617,-500.0,0.00025479,2]
[357453481,1744072267627,-500.0,0.00025479,2]
[357453482,1744072267637,-766.38,0.00025479,2]
[357453483,1744072267647,-1098.07,0.00025479,2]
[357453484,1744072267656,-500.0,0.00025479,2]
[357453485,1744072267666,-500.0,0.00025479,2]
[357453486,1744072267675,-500.0,0.00025479,2]
[357453487,1744072267685,-500.0,0.00025479,2]
[357453488,1744072267694,-1281.59,0.00025479,2]
[357453489,1744072267704,-657.29,0.00025479,2]
[357453490,1744072267713,-504.96,0.00025479,2]
[357453491,1744072267722,-2269.19,0.00025479,2]
[357453492,1744072267732,-1136.21,0.00025479,2]
[357453493,1744072267741,-521.93,0.00025479,2]
[357453494,1744072267750,-500.0,0.00025479,2]
[357453495,1744072267760,-500.0,0.00025479,2]
[357453496,1744072267769,-500.0,0.00025479,2]
[357453497,1744072267778,-2122.13,0.00025479,2]
[357453498,1744072267787,-2281.97,0.00025479,2]
[357453499,1744072267796,-1249.61,0.00025479,2]
[357453500,1744072267807,-2553.3,0.00025479,2]
[357453501,1744072267816,-4924.76,0.00025479,2]
[357453502,1744072267826,-2655.44,0.00025479,2]
[357453503,1744072267835,-500.0,0.00025479,2]
[357453504,1744072267844,-539.16,0.00025479,2]
[357453505,1744072267853,-500.0,0.00025479,2]
[357453506,1744072267863,-1462.38,0.00025479,2]
[357453507,1744072267873,-500.0,0.00025479,2]
[357453508,1744072267883,-992.38,0.00025479,2]
[357453509,1744072267892,-1286.42,0.00025479,2]
[357453510,1744072267902,-715.83,0.00025479,2]
[357453511,1744072267911,-500.0,0.00025479,2]
[357453512,1744072267921,-500.0,0.00025479,2]
[357453513,1744072267931,-1578.91,0.00025479,2]
[357453514,1744072267940,-901.29,0.00025479,2]
[357453515,1744072267950,-500.0,0.00025479,2]
[357453516,1744072267959,-500.0,0.00025479,2]
[357453517,1744072267968,-1302.21,0.00025479,2]
[357453518,1744072267978,-822.32,0.00025479,2]
[357453519,1744072267987,-586.6,0.00025479,2]
[357453520,1744072267996,-500.0,0.00025479,2]
[357453521,1744072268006,-621.11,0.00025479,2]
[357453522,1744072268015,-2863.04,0.00025479,2]
[357453523,1744072268024,-500.0,0.00025479,2]
[357453524,1744072268033,-1809.72,0.00025479,2]
[357453525,1744072268043,-500.0,0.00025479,2]
[357453526,1744072268052,-1698.96,0.00025479,2]
[357453527,1744072268061,-500.0,0.00025479,2]
[357453528,1744072268071,-500.0,0.00025479,2]
[357453529,1744072268081,-526.37730025,0.00025479,2]
[357453530,1744072268090,-500.0,0.00025479,2]
[357453531,1744072268100,-1648.87,0.00025479,2]
[357453532,1744072268111,-1498.83,0.00025479,2]
[357453533,1744072268120,-1155.35,0.00025479,2]
[357453534,1744072268130,-500.0,0.00025479,2]
[357453535,1744072268140,-1146.31,0.00025479,2]
[357453536,1744072268150,-1027.64,0.00025479,2]
[357453537,1744072268160,-1023.13,0.00025479,2]
[357453538,1744072268171,-500.0,0.00025479,2]
[357453539,1744072268181,-442.87342691,0.00025479,2]
[357453540,1744072268191,-500.0,0.00025479,2]
[357453541,1744072268204,-985.96,0.00025479,2]
[357453542,1744072268214,-528.61,0.00025479,2]
[357453543,1744072268224,-484.73781268,0.00025479,2]
[357453544,1744072268235,-1239.2,0.00025479,2]
[357453545,1744072268245,-2365.3,0.00025479,2]
[357453546,1744072268256,-1215.4,0.00025479,2]
[357453547,1744072268266,-500.0,0.00025479,2]
[357453548,1744072268276,-545.75,0.00025479,2]
[357453549,1744072268286,-500.0,0.00025479,2]
[357453550,1744072268296,-500.0,0.00025479,2]
[357453551,1744072268306,-500.0,0.00025479,2]
[357453552,1744072268316,-500.0,0.00025479,2]
[357453553,1744072268326,-753.93,0.00025479,2]
[357453554,1744072268336,-1098.37,0.00025479,2]
[357453555,1744072268347,-501.5,0.00025479,2]
[357453556,1744072268357,-8516.27,0.00025479,2]
[357453557,1744072268367,-500.0,0.00025479,2]
[357453558,1744072268377,-1013.38,0.00025479,2]
[357453559,1744072268388,-500.0,0.00025479,2]
[357453560,1744072268397,-1848.98,0.00025479,2]
[357453561,1744072268407,-1239.8,0.00025479,2]
[357453562,1744072268417,-500.0,0.00025479,2]
[357453563,1744072268427,-958.54,0.00025479,2]
[357453564,1744072268436,-500.0,0.00025479,2]
[357453565,1744072268446,-500.0,0.00025753,2]
[357453566,1744072268457,-500.0,0.00025753,2]
[357453567,1744072268466,-500.0,0.00025753,2]
[357453568,1744072268476,-500.0,0.00025753,2]
[357453569,1744072268486,-500.0,0.00025753,2]
[357453570,1744072268496,-500.0,0.00025753,2]
[357453571,1744072268506,-501.64,0.00025753,2]
[357453572,1744072268515,-548.37,0.00025753,2]
[357453573,1744072268525,-549.5,0.00025753,2]
[357453574,1744072268534,-383.08,0.00025753,2]
[357453575,1744072268544,-536.65,0.00025753,2]
[357453576,1744072268554,-500.0,0.00025753,2]
[357453577,1744072268567,-1119.87,0.00025753,2]
[357453578,1744072268577,-245.1,0.00025753,2]
[357453579,1744072268587,-1199.5,0.00025753,2]
[357453580,1744072268596,-618.07,0.00025753,2]
[357453581,1744072268607,-500.0,0.00025753,2]
[357453582,1744072268618,-1036.15,0.00025753,2]
[357453583,1744072268628,-528.55,0.00025753,2]
[357453584,1744072268638,-500.0,0.00025753,2]
[357453585,1744072268649,-991.44,0.00025753,2]
[357453586,1744072268659,-627.37,0.00025753,2]
[357453587,1744072268668,-500.0,0.00025753,2]
[357453588,1744072268678,-500.0,0.00025753,2]
[357453589,1744072268688,-630.12,0.00025753,2]
[357453590,1744072268698,-500.0,0.00025753,2]
[357453591,1744072268708,-1246.42,0.00025753,2]
[357453592,1744072268718,-764.69,0.00025753,2]
[357453593,1744072268727,-1246.58,0.00025753,2]
[357453594,1744072268737,-500.0,0.00025753,2]
[357453595,1744072268746,-818.18,0.00025753,2]
[357453596,1744072268756,-500.0,0.00025753,2]
[357453597,1744072268766,-344.17077606,0.00025753,2]
[357453598,1744072268775,-500.0,0.00025753,2]
[357453599,1744072268785,-500.0,0.00025753,2]
[357453600,1744072268795,-500.0,0.00025753,2]
[357453601,1744072268805,-539.68271743,0.00025753,2]
[357453602,1744072268815,-592.63,0.00025753,2]
[357453603,1744072268824,-500.0,0.00025753,2]
[357453604,1744072268833,-500.0,0.00025753,2]
[357453605,1744072268843,-766.38,0.00025753,2]
[357453606,1744072268853,-1098.07,0.00025753,2]
[357453607,1744072268862,-626.68726257,0.00025753,2]
[357453608,1744072268971,-500.0,0.00025753,2]
[357453609,1744072268988,-553.44166788,0.00025753,2]
[357453610,1744072268997,-500.0,0.00025753,2]
[357453611,1744072269007,-1281.59,0.00025753,2]
[357453612,1744072269016,-657.29,0.00025753,2]
[357453613,1744072269026,-504.96,0.00025753,2]
[357453614,1744072269035,-2269.19,0.00025753,2]
[357453615,1744072269045,-1136.21,0.00025753,2]
[357453616,1744072269055,-521.93,0.00025753,2]
[357453617,1744072269065,-500.0,0.00025753,2]
[357453618,1744072269074,-500.0,0.00025753,2]
[357453619,1744072269084,-500.0,0.00025753,2]
[357453620,1744072269094,-2122.13,0.00025753,2]
[357453621,1744072269103,-2281.97,0.00025753,2]
[357453622,1744072269113,-1249.61,0.00025753,2]
[357453623,1744072269124,-2553.3,0.00025753,2]
[357453624,1744072269135,-4924.76,0.00025753,2]
[357453625,1744072269145,-2655.44,0.00025753,2]
[357453626,1744072269154,-500.0,0.00025753,2]
[357453627,1744072269164,-539.16,0.00025753,2]
[357453628,1744072269174,-500.0,0.00025753,2]
[357453629,1744072269184,-1462.38,0.00025753,2]
[357453630,1744072269193,-157.6,0.00025753,2]
[357453631,1744072269203,-992.38,0.00025753,2]
[357453632,1744072269213,-1286.42,0.00025753,2]
[357453633,1744072269222,-715.83,0.00025753,2]
[357453634,1744072269232,-500.0,0.00025753,2]
[357453635,1744072269242,-500.0,0.00025753,2]
[357453636,1744072269252,-1578.91,0.00025753,2]
[357453637,1744072269262,-901.29,0.00025753,2]
[357453638,1744072269271,-500.0,0.00025753,2]
[357453639,1744072269281,-500.0,0.00025753,2]
[357453640,1744072269291,-1302.21,0.00025753,2]
[357453641,1744072269301,-822.32,0.00025753,2]
[357453642,1744072269311,-586.6,0.00025753,2]
[357453643,1744072269321,-500.0,0.00025753,2]
[357453644,1744072269330,-2863.04,0.00025753,2]
[357453645,1744072269340,-500.0,0.00025753,2]
[357453646,1744072269349,-1809.72,0.00025753,2]
[357453647,1744072269359,-273.65,0.00025753,2]
[357453648,1744072269370,-1698.96,0.00025753,2]
[357453649,1744072269380,-500.0,0.00025753,2]
[357453650,1744072269390,-500.0,0.00025753,2]
[357453651,1744072269400,-500.0,0.00025753,2]
[357453652,1744072269410,-1648.87,0.00025753,2]
[357453653,1744072269420,-1498.83,0.00025753,2]
[357453654,1744072269430,-1155.35,0.00025753,2]
[357453655,1744072269439,-500.0,0.00025753,2]
[357453656,1744072269449,-151.0,0.00025753,7]
[357453657,1744072269459,-1146.31,0.00025753,2]
[357453658,1744072269469,-151.0,0.00025753,7]
[357453659,1744072269479,-1027.64,0.00025753,2]
[357453660,1744072269488,-1023.13,0.00025753,2]
[357453661,1744072269498,-151.0,0.00025753,7]
[357453662,1744072269508,-500.0,0.00025753,2]
[357453663,1744072269518,-151.0,0.00025753,2]
[357453664,1744072269528,-500.0,0.00025753,2]
[357453665,1744072269538,-985.96,0.00025753,2]
[357453666,1744072269548,-528.61,0.00025753,2]
[357453667,1744072269558,-1239.2,0.00025753,2]
[357453668,1744072269568,-2365.3,0.00025753,2]
[357453669,1744072269581,-1215.4,0.00025753,2]
[357453670,1744072269590,-500.0,0.00025753,2]
[357453671,1744072269600,-545.75,0.00025753,2]
[357453672,1744072269610,-500.0,0.00025753,2]
[357453673,1744072269621,-500.0,0.00025753,2]
[357453674,1744072269630,-500.0,0.00025753,2]
[357453675,1744072269640,-500.0,0.00025753,2]
[357453676,1744072269651,-753.93,0.00025753,2]
[357453677,1744072269668,-1098.37,0.00025753,2]
[357453678,1744072269678,-501.5,0.00025753,2]
[357453679,1744072269687,-8516.27,0.00025753,2]
[357453680,1744072269697,-500.0,0.00025753,2]
[357453681,1744072269706,-1013.38,0.00025753,2]
[357453682,1744072269716,-500.0,0.00025753,2]
[357453683,1744072269726,-1848.98,0.00025753,2]
[357453684,1744072269735,-1239.8,0.00025753,2]
[357453685,1744072269746,-500.0,0.00025753,2]
[357453686,1744072269757,-958.54,0.00025753,2]
[357453687,1744072269767,-181.81918152,0.00025753,2]
[357453688,1744072269778,-156.310352,0.00025864,2]
[357453689,1744072269788,-136799.24803995,0.000259,2]
[357453690,1744072269798,-290.742792,0.000259,7]
[357453691,1744072269808,-290.742792,0.000259,7]
[357453692,1744072269818,-442.522977,0.000259,7]
[357453693,1744072269827,-442.522977,0.000259,7]
[357453694,1744072269837,-252.3801,0.000259,7]
[357453695,1744072269847,-252.3801,0.000259,7]
[357453696,1744072269856,-151.0,0.000259,7]
[357453697,1744072269866,-151.0,0.000259,2]
[357453698,1744072269877,-151.0,0.000259,2]
[357453699,1744072269887,-49168.13254373,0.00026,30]
[357453700,1744072269897,-500.0,0.00026027,2]
[357453701,1744072269906,-500.0,0.00026027,2]
[357453702,1744072269916,-500.0,0.00026027,2]
[357453703,1744072269926,-190.73412388,0.00026027,2]
[357453704,1744072269936,-500.0,0.00026027,2]
[357453705,1744072269945,-500.0,0.00026027,2]
[357453706,1744072269954,-501.64,0.00026027,2]
[357453707,1744072269964,-548.37,0.00026027,2]
[357453708,1744072269974,-536.65,0.00026027,2]
[357453709,1744072269984,-500.0,0.00026027,2]
[357453710,1744072269993,-1119.87,0.00026027,2]
[357453711,1744072270002,-1199.5,0.00026027,2]
[357453712,1744072270011,-618.07,0.00026027,2]
[357453713,1744072270021,-500.0,0.00026027,2]
[357453714,1744072270030,-1036.15,0.00026027,2]
[357453715,1744072270039,-528.55,0.00026027,2]
[357453716,1744072270049,-500.0,0.00026027,2]
[357453717,1744072270058,-991.44,0.00026027,2]
[357453718,1744072270068,-627.37,0.00026027,2]
[357453719,1744072270078,-500.0,0.00026027,2]
[357453720,1744072270088,-500.0,0.00026027,2]
[357453721,1744072270098,-630.12,0.00026027,2]
[357453722,1744072270107,-500.0,0.00026027,2]
[357453723,1744072270118,-1246.42,0.00026027,2]
[357453724,1744072270128,-764.69,0.00026027,2]
[357453725,1744072270138,-1246.58,0.00026027,2]
[357453726,1744072270147,-339.96220746,0.00026027,2]
[357453727,1744072270157,-818.18,0.00026027,2]
[357453728,1744072270167,-500.0,0.00026027,2]
[357453729,1744072270177,-500.0,0.00026027,2]
[357453730,1744072270187,-500.0,0.00026027,2]
[357453731,1744072270197,-500.0,0.00026027,2]
[357453732,1744072270207,-592.63,0.00026027,2]
[357453733,1744072270216,-500.0,0.00026027,2]
[357453734,1744072270226,-500.0,0.00026027,2]
[357453735,1744072270236,-766.38,0.00026027,2]
[357453736,1744072270246,-1098.07,0.00026027,2]
[357453737,1744072270255,-500.0,0.00026027,2]
[357453738,1744072270265,-500.0,0.00026027,2]
[357453739,1744072270275,-1281.59,0.00026027,2]
[357453740,1744072270285,-657.29,0.00026027,2]
[357453741,1744072270294,-504.96,0.00026027,2]
[357453742,1744072270304,-2269.19,0.00026027,2]
[357453743,1744072270314,-1136.21,0.00026027,2]
[357453744,1744072270324,-500.0,0.00026027,2]
[357453745,1744072270333,-521.93,0.00026027,2]
[357453746,1744072270343,-500.0,0.00026027,2]
[357453747,1744072270354,-500.0,0.00026027,2]
[357453748,1744072270364,-2122.13,0.00026027,2]
[357453749,1744072270374,-2281.97,0.00026027,2]
[357453750,1744072270384,-1249.61,0.00026027,2]
[357453751,1744072270394,-2553.3,0.00026027,2]
[357453752,1744072270403,-4924.76,0.00026027,2]
[357453753,1744072270413,-2655.44,0.00026027,2]
[357453754,1744072270423,-500.0,0.00026027,2]
[357453755,1744072270433,-539.16,0.00026027,2]
[357453756,1744072270443,-500.0,0.00026027,2]
[357453757,1744072270453,-1462.38,0.00026027,2]
[357453758,1744072270464,-992.38,0.00026027,2]
[357453759,1744072270475,-1286.42,0.00026027,2]
[357453760,1744072270485,-715.83,0.00026027,2]
[357453761,1744072270496,-500.0,0.00026027,2]
[357453762,1744072270610,-500.0,0.00026027,2]
[357453763,1744072270620,-1578.91,0.00026027,2]
[357453764,1744072270630,-901.29,0.00026027,2]
[357453765,1744072270640,-500.0,0.00026027,2]
[357453766,1744072270651,-500.0,0.00026027,2]
[357453767,1744072270661,-1302.21,0.00026027,2]
[357453768,1744072270670,-822.32,0.00026027,2]
[357453769,1744072270680,-586.6,0.00026027,2]
[357453770,1744072270689,-500.0,0.00026027,2]
[357453771,1744072270699,-2863.04,0.00026027,2]
[357453772,1744072270709,-500.0,0.00026027,2]
[357453773,1744072270720,-1809.72,0.00026027,2]
[357453774,1744072270730,-1698.96,0.00026027,2]
[357453775,1744072270739,-500.0,0.00026027,2]
[357453776,1744072270749,-500.0,0.00026027,2]
[357453777,1744072270759,-158.6695493,0.00026027,2]
[357453778,1744072270769,-1648.87,0.00026027,2]
[357453779,1744072270779,-1498.83,0.00026027,2]
[357453780,1744072270788,-1155.35,0.00026027,2]
[357453781,1744072270798,-500.0,0.00026027,2]
[357453782,1744072270808,-1146.31,0.00026027,2]
[357453783,1744072270819,-200.0,0.00026027,2]
[357453784,1744072270829,-1027.64,0.00026027,2]
[357453785,1744072270839,-1023.13,0.00026027,2]
[357453786,1744072270850,-500.0,0.00026027,2]
[357453787,1744072270861,-500.0,0.00026027,2]
[357453788,1744072270871,-985.96,0.00026027,2]
[357453789,1744072270882,-528.61,0.00026027,2]
[357453790,1744072270893,-1239.2,0.00026027,2]
[357453791,1744072270904,-2365.3,0.00026027,2]
[357453792,1744072270914,-1215.4,0.00026027,2]
[357453793,1744072270924,-419.8998913,0.00026027,2]
[357453794,1744072270934,-545.75,0.00026027,2]
[357453795,1744072270944,-500.0,0.00026027,2]
[357453796,1744072270955,-500.0,0.00026027,2]
[357453797,1744072270965,-500.0,0.00026027,2]
[357453798,1744072270976,-500.0,0.00026027,2]
[357453799,1744072270986,-753.93,0.00026027,2]
[357453800,1744072270996,-1098.37,0.00026027,2]
[357453801,1744072271006,-501.5,0.00026027,2]
[357453802,1744072271016,-8516.27,0.00026027,2]
[357453803,1744072271026,-500.0,0.00026027,2]
[357453804,1744072271036,-1013.38,0.00026027,2]
[357453805,1744072271046,-500.0,0.00026027,2]
[357453806,1744072271057,-1848.98,0.00026027,2]
[357453807,1744072271067,-1239.8,0.00026027,2]
[357453808,1744072271077,-500.0,0.00026027,2]
[357453809,1744072271088,-958.54,0.00026027,2]
[357453810,1744072271098,-322.66081871,0.00026301,2]
[357453811,1744072271108,-500.0,0.00026301,2]
[357453812,1744072271118,-500.0,0.00026301,2]
[357453813,1744072271130,-366.52,0.00026301,2]
[357453814,1744072271140,-500.0,0.00026301,2]
[357453815,1744072271150,-501.64,0.00026301,2]
[357453816,1744072271160,-548.37,0.00026301,2]
[357453817,1744072271170,-536.65,0.00026301,2]
[357453818,1744072271179,-500.0,0.00026301,2]
[357453819,1744072271189,-1119.87,0.00026301,2]
[357453820,1744072271199,-1199.5,0.00026301,2]
[357453821,1744072271209,-618.07,0.00026301,2]
[357453822,1744072271219,-639.02832632,0.00026301,2]
[357453823,1744072271229,-1036.15,0.00026301,2]
[357453824,1744072271240,-528.55,0.00026301,2]
[357453825,1744072271251,-500.0,0.00026301,2]
[357453826,1744072271262,-991.44,0.00026301,2]
[357453827,1744072271272,-627.37,0.00026301,2]
[357453828,1744072271283,-500.0,0.00026301,2]
[357453829,1744072271293,-500.0,0.00026301,2]
[357453830,1744072271304,-630.12,0.00026301,2]
[357453831,1744072271314,-249.82684509,0.00026301,2]
[357453832,1744072271323,-1246.42,0.00026301,2]
[357453833,1744072271333,-764.69,0.00026301,2]
[357453834,1744072271342,-1246.58,0.00026301,2]
[357453835,1744072271352,-818.18,0.00026301,2]
[357453836,1744072271361,-500.0,0.00026301,2]
[357453837,1744072271373,-500.0,0.00026301,2]
[357453838,1744072271382,-500.0,0.00026301,2]
[357453839,1744072271392,-500.0,0.00026301,2]
[357453840,1744072271402,-592.63,0.00026301,2]
[357453841,1744072271412,-531.41683324,0.00026301,2]
[357453842,1744072271422,-500.0,0.00026301,2]
[357453843,1744072271431,-766.38,0.00026301,2]
[357453844,1744072271441,-1098.07,0.00026301,2]
[357453845,1744072271451,-500.0,0.00026301,2]
[357453846,1744072271460,-500.0,0.00026301,2]
[357453847,1744072271471,-1281.59,0.00026301,2]
[357453848,1744072271481,-657.29,0.00026301,2]
[357453849,1744072271491,-504.96,0.00026301,2]
[357453850,1744072271500,-2269.19,0.00026301,2]
[357453851,1744072271510,-1136.21,0.00026301,2]
[357453852,1744072271520,-500.0,0.00026301,2]
[357453853,1744072271530,-521.93,0.00026301,2]
[357453854,1744072271540,-311.36505176,0.00026301,2]
[357453855,1744072271549,-500.0,0.00026301,2]
[357453856,1744072271559,-2122.13,0.00026301,2]
[357453857,1744072271573,-2281.97,0.00026301,2]
[357453858,1744072271584,-1249.61,0.00026301,2]
[357453859,1744072271594,-2553.3,0.00026301,2]
[357453860,1744072271604,-2655.44,0.00026301,2]
[357453861,1744072271615,-4924.76,0.00026301,2]
[357453862,1744072271626,-500.0,0.00026301,2]
[357453863,1744072271636,-539.16,0.00026301,2]
[357453864,1744072271647,-500.0,0.00026301,2]
[357453865,1744072271657,-1462.38,0.00026301,2]
[357453866,1744072271668,-992.38,0.00026301,2]
[357453867,1744072271677,-1286.42,0.00026301,2]
[357453868,1744072271687,-715.83,0.00026301,2]
[357453869,1744072271697,-467.03,0.00026301,2]
[357453870,1744072271706,-500.0,0.00026301,2]
[357453871,1744072271717,-1578.91,0.00026301,2]
[357453872,1744072271727,-901.29,0.00026301,2]
[357453873,1744072271737,-500.0,0.00026301,2]
[357453874,1744072271746,-500.0,0.00026301,2]
[357453875,1744072271756,-1302.21,0.00026301,2]
[357453876,1744072271765,-822.32,0.00026301,2]
[357453877,1744072271775,-586.6,0.00026301,2]
[357453878,1744072271785,-500.0,0.00026301,2]
[357453879,1744072271794,-2863.04,0.00026301,2]
[357453880,1744072271804,-500.0,0.00026301,2]
[357453881,1744072271814,-1809.72,0.00026301,2]
[357453882,1744072271823,-1698.96,0.00026301,2]
[357453883,1744072271833,-500.0,0.00026301,2]
[357453884,1744072271843,-500.0,0.00026301,2]
[357453885,1744072271853,-1648.87,0.00026301,2]
[357453886,1744072271863,-1498.83,0.00026301,2]
[357453887,1744072271875,-1155.35,0.00026301,2]
[357453888,1744072271885,-388.52156503,0.00026301,2]
[357453889,1744072271896,-1146.31,0.00026301,2]
[357453890,1744072271905,-1027.64,0.00026301,2]
[357453891,1744072271914,-1023.13,0.00026301,2]
[357453892,1744072271924,-500.0,0.00026301,2]
[357453893,1744072271933,-500.0,0.00026301,2]
[357453894,1744072271942,-985.96,0.00026301,2]
[357453895,1744072271952,-528.61,0.00026301,2]
[357453896,1744072271962,-1239.2,0.00026301,2]
[357453897,1744072271971,-2365.3,0.00026301,2]
[357453898,1744072271982,-1215.4,0.00026301,2]
[357453899,1744072271992,-545.75,0.00026301,2]
[357453900,1744072272002,-500.0,0.00026301,2]
[357453901,1744072272011,-500.0,0.00026301,2]
[357453902,1744072272021,-500.0,0.00026301,2]
[357453903,1744072272135,-500.0,0.00026301,2]
[357453904,1744072272146,-1098.37,0.00026301,2]
[357453905,1744072272156,-753.93,0.00026301,2]
[357453906,1744072272166,-501.5,0.00026301,2]
[357453907,1744072272176,-8516.27,0.00026301,2]
[357453908,1744072272186,-500.0,0.00026301,2]
[357453909,1744072272197,-1013.38,0.00026301,2]
[357453910,1744072272207,-504.64255801,0.00026301,2]
[357453911,1744072272217,-1848.98,0.00026301,2]
[357453912,1744072272227,-1239.8,0.00026301,2]
[357453913,1744072272236,-500.0,0.00026301,2]
[357453914,1744072272246,-958.54,0.00026301,2]
[357453915,1744072272256,-536.59766062,0.00026575,2]
[357453916,1744072272266,-206.16554278,0.00026575,2]
[357453917,1744072272276,-500.0,0.00026575,2]
[357453918,1744072272286,-501.64,0.00026575,2]
[357453919,1744072272296,-548.37,0.00026575,2]
[357453920,1744072272306,-536.65,0.00026575,2]
[357453921,1744072272316,-500.0,0.00026575,2]
[357453922,1744072272326,-1119.87,0.00026575,2]
[357453923,1744072272336,-1199.5,0.00026575,2]
[357453924,1744072272346,-618.07,0.00026575,2]
[357453925,1744072272356,-1036.15,0.00026575,2]
[357453926,1744072272366,-528.55,0.00026575,2]
[357453927,1744072272378,-500.0,0.00026575,2]
[357453928,1744072272388,-991.44,0.00026575,2]
[357453929,1744072272398,-627.37,0.00026575,2]
[357453930,1744072272408,-500.0,0.00026575,2]
[357453931,1744072272417,-500.0,0.00026575,2]
[357453932,1744072272427,-630.12,0.00026575,2]
[357453933,1744072272437,-1246.42,0.00026575,2]
[357453934,1744072272447,-764.69,0.00026575,2]
[357453935,1744072272457,-1246.58,0.00026575,2]
[357453936,1744072272467,-818.18,0.00026575,2]
[357453937,1744072272477,-500.0,0.00026575,2]
[357453938,1744072272487,-440.0989177,0.00026575,2]
[357453939,1744072272497,-500.0,0.00026575,2]
[357453940,1744072272508,-500.0,0.00026575,2]
[357453941,1744072272518,-592.63,0.00026575,2]
[357453942,1744072272528,-500.0,0.00026575,2]
[357453943,1744072272538,-766.38,0.00026575,2]
[357453944,1744072272548,-1098.07,0.00026575,2]
[357453945,1744072272558,-500.0,0.00026575,2]
[357453946,1744072272571,-500.0,0.00026575,2]
[357453947,1744072272581,-1281.59,0.00026575,2]
[357453948,1744072272591,-657.29,0.00026575,2]
[357453949,1744072272602,-504.96,0.00026575,2]
[357453950,1744072272612,-2269.19,0.00026575,2]
[357453951,1744072272623,-1136.21,0.00026575,2]
[357453952,1744072272632,-637.07352425,0.00026575,2]
[357453953,1744072272643,-521.93,0.00026575,2]
[357453954,1744072272653,-634.94,0.00026575,2]
[357453955,1744072272663,-2122.13,0.00026575,2]
[357453956,1744072272673,-2281.97,0.00026575,2]
[357453957,1744072272683,-1249.61,0.00026575,2]
[357453958,1744072272693,-2553.3,0.00026575,2]
[357453959,1744072272703,-4924.76,0.00026575,2]
[357453960,1744072272712,-2655.44,0.00026575,2]
[357453961,1744072272722,-500.0,0.00026575,2]
[357453962,1744072272731,-539.16,0.00026575,2]